[Event "*** Titled Tuesday Blitz"]
[Site "Chess.com"]
[Date "2020.11.03"]
[Round "2"]
[White "valeriocarnicelli"]
[Black "yobdc"]
[Result "1-0"]
[WhiteElo "2575"]
[BlackElo "2321"]
[TimeControl "180+1"]
[EndTime "10:19:32 PST"]
[Termination "valeriocarnicelli won on time"]

1. e4 {[%clk 0:03:00.9]} 1... c6 {[%clk 0:02:59]} 2. Nc3 {[%clk 0:02:59.3]} 2...
d5 {[%clk 0:02:58.7]} 3. Nf3 {[%clk 0:02:59.6]} 3... Bg4 {[%clk 0:02:57.3]} 4.
h3 {[%clk 0:02:59.3]} 4... Bxf3 {[%clk 0:02:57.4]} 5. Qxf3 {[%clk 0:02:59.2]}
5... e6 {[%clk 0:02:57.8]} 6. d4 {[%clk 0:02:59]} 6... Bb4 {[%clk 0:02:53.6]} 7.
e5 {[%clk 0:02:44.3]} 7... Ne7 {[%clk 0:02:50.4]} 8. Bd3 {[%clk 0:02:34.9]} 8...
c5 {[%clk 0:02:32]} 9. a3 {[%clk 0:02:30.1]} 9... Ba5 {[%clk 0:02:29.2]} 10. b4
{[%clk 0:02:27.6]} 10... cxb4 {[%clk 0:02:18.5]} 11. Nb5 {[%clk 0:02:27.8]}
11... b3+ {[%clk 0:02:02.4]} 12. c3 {[%clk 0:02:27.8]} 12... O-O {[%clk
0:01:59.6]} 13. Bd2 {[%clk 0:02:17.6]} 13... Nbc6 {[%clk 0:01:50.1]} 14. Qg4
{[%clk 0:02:07.6]} 14... a6 {[%clk 0:01:31.1]} 15. Nd6 {[%clk 0:02:07.1]} 15...
Bc7 {[%clk 0:00:49.3]} 16. Nxb7 {[%clk 0:02:05.6]} 16... Qc8 {[%clk 0:00:49.1]}
17. Nc5 {[%clk 0:02:04.2]} 17... Na5 {[%clk 0:00:24.7]} 18. f4 {[%clk
0:01:37.9]} 18... Nf5 {[%clk 0:00:19.9]} 19. O-O {[%clk 0:01:20.3]} 19... Bb6
{[%clk 0:00:20]} 20. Na4 {[%clk 0:01:08.9]} 20... Rb8 {[%clk 0:00:20.3]} 21.
Nxb6 {[%clk 0:01:08.3]} 21... Rxb6 {[%clk 0:00:21.2]} 22. Qf3 {[%clk 0:01:04.4]}
22... Nc4 {[%clk 0:00:21.2]} 23. Bxc4 {[%clk 0:00:56.4]} 23... Qxc4 {[%clk
0:00:22.1]} 24. Rab1 {[%clk 0:00:56]} 24... b2 {[%clk 0:00:21.2]} 25. g4 {[%clk
0:00:53.9]} 25... Ne7 {[%clk 0:00:21.2]} 26. Rf2 {[%clk 0:00:50.7]} 26... Qa2
{[%clk 0:00:19.6]} 27. Qd1 {[%clk 0:00:50.3]} 27... Rfb8 {[%clk 0:00:17]} 28. f5
{[%clk 0:00:46.5]} 28... exf5 {[%clk 0:00:14]} 29. gxf5 {[%clk 0:00:47.4]} 29...
Qxa3 {[%clk 0:00:13.1]} 30. Rg2 {[%clk 0:00:46.3]} 30... Nxf5 {[%clk 0:00:12.7]}
31. Kh2 {[%clk 0:00:44.1]} 31... g6 {[%clk 0:00:12.5]} 32. Qc2 {[%clk
0:00:42.7]} 32... Nh4 {[%clk 0:00:09.7]} 33. Rg3 {[%clk 0:00:40.1]} 33... Kf8
{[%clk 0:00:07.1]} 34. Bh6+ {[%clk 0:00:38.9]} 34... Ke8 {[%clk 0:00:07.4]} 35.
Bg5 {[%clk 0:00:29.3]} 35... Nf5 {[%clk 0:00:07.2]} 36. Rg2 {[%clk 0:00:28]}
36... Qb3 {[%clk 0:00:07.2]} 37. Qd2 {[%clk 0:00:25]} 37... a5 {[%clk
0:00:06.2]} 38. Bf4 {[%clk 0:00:11.9]} 38... a4 {[%clk 0:00:06.3]} 39. e6 {[%clk
0:00:12.3]} 39... fxe6 {[%clk 0:00:04.8]} 40. Bxb8 {[%clk 0:00:12.4]} 40... a3
{[%clk 0:00:03.4]} 41. Qg5 {[%clk 0:00:05.9]} 41... Rxb8 {[%clk 0:00:01.7]} 42.
Qf6 {[%clk 0:00:04.7]} 42... Kd7 {[%clk 0:00:01.1]} 43. Re2 {[%clk 0:00:03.2]}
1-0

[Event "*** Titled Tuesday Blitz"]
[Site "Chess.com"]
[Date "2020.11.03"]
[Round "2"]
[White "VALPARAISO37"]
[Black "Tomekas1"]
[Result "0-1"]
[WhiteElo "2264"]
[BlackElo "2456"]
[TimeControl "180+1"]
[EndTime "10:19:32 PST"]
[Termination "Tomekas1 won on time"]

1. d4 {[%clk 0:03:00.9]} 1... d5 {[%clk 0:03:00]} 2. c4 {[%clk 0:02:16.6]} 2...
c6 {[%clk 0:02:59.1]} 3. Nc3 {[%clk 0:02:15.7]} 3... e5 {[%clk 0:02:59.4]} 4.
dxe5 {[%clk 0:01:51.8]} 4... d4 {[%clk 0:02:58.3]} 5. Ne4 {[%clk 0:01:52.3]}
5... Qa5+ {[%clk 0:02:58]} 6. Bd2 {[%clk 0:01:52.6]} 6... Qxe5 {[%clk
0:02:58.6]} 7. Ng3 {[%clk 0:01:53.2]} 7... Nf6 {[%clk 0:02:59.2]} 8. Nf3 {[%clk
0:01:53.8]} 8... Qd6 {[%clk 0:02:59.9]} 9. e3 {[%clk 0:01:54.2]} 9... dxe3
{[%clk 0:02:59.4]} 10. Bxe3 {[%clk 0:01:54.1]} 10... Qxd1+ {[%clk 0:02:54.7]}
11. Rxd1 {[%clk 0:01:53.2]} 11... Bb4+ {[%clk 0:02:54.7]} 12. Bd2 {[%clk
0:01:52.8]} 12... Bxd2+ {[%clk 0:02:49.7]} 13. Rxd2 {[%clk 0:01:52.2]} 13... O-O
{[%clk 0:02:50.1]} 14. h3 {[%clk 0:01:51.7]} 14... c5 {[%clk 0:02:41.4]} 15. Bd3
{[%clk 0:01:50.7]} 15... Nc6 {[%clk 0:02:35.3]} 16. a3 {[%clk 0:01:50.3]} 16...
Re8+ {[%clk 0:02:34]} 17. Kd1 {[%clk 0:01:50.5]} 17... h6 {[%clk 0:02:25.7]} 18.
Re1 {[%clk 0:01:49.9]} 18... Be6 {[%clk 0:02:25.9]} 19. Kc2 {[%clk 0:01:47.7]}
19... Na5 {[%clk 0:02:19.9]} 20. b3 {[%clk 0:01:47.3]} 20... b5 {[%clk
0:02:18.3]} 21. cxb5 {[%clk 0:01:46.7]} 21... Bxb3+ {[%clk 0:02:07.6]} 22. Kc3
{[%clk 0:01:46.1]} 22... Nd5+ {[%clk 0:01:50.3]} 23. Kb2 {[%clk 0:01:45.3]}
23... c4 {[%clk 0:01:49.2]} 24. Bh7+ {[%clk 0:01:41.5]} 24... Kxh7 {[%clk
0:01:48.5]} 25. Rdd1 {[%clk 0:01:40.2]} 25... c3+ {[%clk 0:01:45.6]} 26. Kc1
{[%clk 0:01:39.7]} 26... Bxd1 {[%clk 0:01:41.6]} 27. Rxd1 {[%clk 0:01:39.4]}
27... Nf4 {[%clk 0:01:30.6]} 28. Kc2 {[%clk 0:01:36.9]} 28... Rad8 {[%clk
0:01:16.6]} 29. Rxd8 {[%clk 0:01:34.8]} 29... Rxd8 {[%clk 0:01:17.5]} 30. Kxc3
{[%clk 0:01:34.2]} 30... Nxg2 {[%clk 0:01:17.6]} 31. Kb4 {[%clk 0:01:33.9]}
31... Nb7 {[%clk 0:01:16.8]} 32. Ne5 {[%clk 0:01:33.6]} 32... Rd4+ {[%clk
0:01:06.6]} 33. Kc3 {[%clk 0:01:29.6]} 33... Rd5 {[%clk 0:01:03.5]} 34. Nxf7
{[%clk 0:01:27.3]} 34... Rxb5 {[%clk 0:01:02.7]} 35. a4 {[%clk 0:01:28.1]} 35...
Rd5 {[%clk 0:01:00.1]} 36. Ne4 {[%clk 0:01:12.4]} 36... Nf4 {[%clk 0:00:57.9]}
37. h4 {[%clk 0:01:11.9]} 37... Nc5 {[%clk 0:00:54.8]} 38. Nxc5 {[%clk
0:01:04.4]} 38... Rxc5+ {[%clk 0:00:55.7]} 39. Kb4 {[%clk 0:01:04.2]} 39... Rf5
{[%clk 0:00:54.3]} 40. Nd6 {[%clk 0:01:03.8]} 40... Rf6 {[%clk 0:00:53.4]} 41.
Kc5 {[%clk 0:01:02.5]} 41... Nd3+ {[%clk 0:00:52.1]} 42. Kd5 {[%clk 0:01:01.6]}
42... Rxf2 {[%clk 0:00:50.9]} 43. a5 {[%clk 0:01:00.5]} 43... Ra2 {[%clk
0:00:50.1]} 44. Nc4 {[%clk 0:00:59.6]} 44... g5 {[%clk 0:00:48.4]} 45. hxg5
{[%clk 0:00:59.2]} 45... hxg5 {[%clk 0:00:49]} 46. Ke4 {[%clk 0:00:46.1]} 46...
Nb2 {[%clk 0:00:45]} 47. Nd6 {[%clk 0:00:36.1]} 47... Rxa5 {[%clk 0:00:43.1]}
48. Nf7 {[%clk 0:00:35.7]} 48... Kg7 {[%clk 0:00:42]} 49. Nd6 {[%clk 0:00:34.9]}
49... g4 {[%clk 0:00:40.3]} 50. Kf4 {[%clk 0:00:34.2]} 50... Ra4+ {[%clk
0:00:40.2]} 51. Kg3 {[%clk 0:00:34.8]} 51... Nd3 {[%clk 0:00:40.1]} 52. Nf5+
{[%clk 0:00:33.4]} 52... Kf6 {[%clk 0:00:40.6]} 53. Nd6 {[%clk 0:00:33.4]} 53...
Ne5 {[%clk 0:00:39.7]} 54. Ne8+ {[%clk 0:00:32.7]} 54... Kg5 {[%clk 0:00:39.5]}
55. Nd6 {[%clk 0:00:31.4]} 55... Ra3+ {[%clk 0:00:39.1]} 56. Kg2 {[%clk
0:00:31.9]} 56... Kf4 {[%clk 0:00:39.2]} 57. Kf2 {[%clk 0:00:28.8]} 57... Ra2+
{[%clk 0:00:40.1]} 58. Kf1 {[%clk 0:00:28.3]} 58... Kf3 {[%clk 0:00:39.3]} 59.
Ke1 {[%clk 0:00:27.3]} 59... g3 {[%clk 0:00:39.8]} 0-1

[Event "*** Titled Tuesday Blitz"]
[Site "Chess.com"]
[Date "2020.11.03"]
[Round "2"]
[White "queen_iryna"]
[Black "aleksey1203borisovi4"]
[Result "0-1"]
[WhiteElo "2257"]
[BlackElo "2453"]
[TimeControl "180+1"]
[EndTime "10:19:32 PST"]
[Termination "aleksey1203borisovi4 won by resignation"]

1. e4 {[%clk 0:03:00.9]} 1... g6 {[%clk 0:03:00.9]} 2. d4 {[%clk 0:02:57.5]}
2... Bg7 {[%clk 0:03:00.7]} 3. Nc3 {[%clk 0:02:57.6]} 3... d6 {[%clk 0:02:57.7]}
4. Be3 {[%clk 0:02:58]} 4... Nf6 {[%clk 0:02:58.1]} 5. h3 {[%clk 0:02:56.4]}
5... Nc6 {[%clk 0:02:58.4]} 6. Qd2 {[%clk 0:02:52.2]} 6... e5 {[%clk 0:02:48.9]}
7. Nf3 {[%clk 0:02:25.3]} 7... O-O {[%clk 0:02:45.4]} 8. O-O-O {[%clk
0:01:14.3]} 8... exd4 {[%clk 0:02:32.9]} 9. Nxd4 {[%clk 0:01:15.2]} 9... Bd7
{[%clk 0:02:32.9]} 10. Bc4 {[%clk 0:01:10.7]} 10... a6 {[%clk 0:02:23]} 11. Bg5
{[%clk 0:01:02.8]} 11... b5 {[%clk 0:02:13.2]} 12. Bb3 {[%clk 0:01:02.2]} 12...
Nxd4 {[%clk 0:02:05.7]} 13. Qxd4 {[%clk 0:01:01.2]} 13... h6 {[%clk 0:02:04]}
14. Bh4 {[%clk 0:00:56.4]} 14... a5 {[%clk 0:01:57.7]} 15. a4 {[%clk 0:00:41.5]}
15... g5 {[%clk 0:01:48.4]} 16. Bg3 {[%clk 0:00:40.2]} 16... b4 {[%clk
0:01:49.3]} 17. Nd5 {[%clk 0:00:36]} 17... Nxd5 {[%clk 0:01:40.1]} 18. Qxd5
{[%clk 0:00:36.9]} 18... Be6 {[%clk 0:01:28.7]} 19. Qd3 {[%clk 0:00:36.4]} 19...
Qf6 {[%clk 0:01:21.9]} 20. e5 {[%clk 0:00:34.1]} 20... dxe5 {[%clk 0:01:18]} 21.
Bxe6 {[%clk 0:00:33.9]} 21... Qxe6 {[%clk 0:01:09.7]} 22. Rhe1 {[%clk
0:00:34.3]} 22... Qa2 {[%clk 0:00:59.6]} 23. Qb3 {[%clk 0:00:28.2]} 23... Qxb3
{[%clk 0:00:56]} 24. cxb3 {[%clk 0:00:29.1]} 24... f6 {[%clk 0:00:56.7]} 25. Kb1
{[%clk 0:00:28.4]} 25... Rfd8 {[%clk 0:00:44.5]} 26. Rc1 {[%clk 0:00:28.5]}
26... Rd7 {[%clk 0:00:33.3]} 27. Rc5 {[%clk 0:00:29]} 27... Ra6 {[%clk
0:00:30.1]} 28. Rec1 {[%clk 0:00:28.6]} 28... f5 {[%clk 0:00:26.6]} 29. f3
{[%clk 0:00:27.5]} 29... Re6 {[%clk 0:00:21.6]} 30. Rxc7 {[%clk 0:00:26.2]}
30... Rxc7 {[%clk 0:00:21.6]} 31. Rxc7 {[%clk 0:00:27.1]} 31... e4 {[%clk
0:00:21]} 32. fxe4 {[%clk 0:00:26.6]} 32... fxe4 {[%clk 0:00:21]} 33. Rc2 {[%clk
0:00:26.3]} 33... e3 {[%clk 0:00:20.8]} 34. Re2 {[%clk 0:00:26.6]} 34... Bd4
{[%clk 0:00:21]} 35. Kc2 {[%clk 0:00:26.6]} 35... Kf7 {[%clk 0:00:21.1]} 36. Kd3
{[%clk 0:00:26.7]} 36... Bb6 {[%clk 0:00:21.5]} 37. Be1 {[%clk 0:00:25.3]} 37...
Kf6 {[%clk 0:00:21.8]} 38. Kc4 {[%clk 0:00:24]} 38... Kf5 {[%clk 0:00:21.5]} 39.
Kd3 {[%clk 0:00:22.9]} 39... h5 {[%clk 0:00:21.5]} 40. g3 {[%clk 0:00:22.3]}
40... Rd6+ {[%clk 0:00:20.8]} 41. Kc2 {[%clk 0:00:22]} 41... Ke4 {[%clk
0:00:21.7]} 42. g4 {[%clk 0:00:19.4]} 42... Rc6+ {[%clk 0:00:22.6]} 43. Kd1
{[%clk 0:00:18.7]} 43... h4 {[%clk 0:00:23.5]} 44. Rc2 {[%clk 0:00:17.7]} 44...
Rxc2 {[%clk 0:00:22.5]} 45. Kxc2 {[%clk 0:00:18.6]} 45... Kf3 {[%clk 0:00:22.3]}
46. Kd1 {[%clk 0:00:18.5]} 46... Kg2 {[%clk 0:00:21.9]} 47. Bxh4 {[%clk
0:00:17.9]} 47... gxh4 {[%clk 0:00:21.5]} 48. Ke2 {[%clk 0:00:17.4]} 48... Kxh3
{[%clk 0:00:21.3]} 49. g5 {[%clk 0:00:17.8]} 49... Kg4 {[%clk 0:00:21.2]} 50. g6
{[%clk 0:00:18.2]} 50... Bd4 {[%clk 0:00:22]} 51. Kd3 {[%clk 0:00:16.7]} 51...
Bg7 {[%clk 0:00:22.9]} 52. Kxe3 {[%clk 0:00:16.5]} 52... h3 {[%clk 0:00:23.5]}
53. Kf2 {[%clk 0:00:16.7]} 53... Kg5 {[%clk 0:00:22.9]} 54. Kg3 {[%clk
0:00:16.5]} 54... Kxg6 {[%clk 0:00:23.8]} 55. Kxh3 {[%clk 0:00:16.9]} 55... Kf5
{[%clk 0:00:24.7]} 56. Kg3 {[%clk 0:00:17.2]} 56... Ke4 {[%clk 0:00:25.6]} 57.
Kf2 {[%clk 0:00:17.1]} 57... Kd3 {[%clk 0:00:26.5]} 58. Ke1 {[%clk 0:00:17.1]}
58... Kc2 {[%clk 0:00:27.4]} 59. Ke2 {[%clk 0:00:17.2]} 59... Kxb2 {[%clk
0:00:28.3]} 60. Kd3 {[%clk 0:00:16.9]} 60... Kxb3 {[%clk 0:00:29.2]} 0-1

[Event "*** Titled Tuesday Blitz"]
[Site "Chess.com"]
[Date "2020.11.03"]
[Round "2"]
[White "Heineccius"]
[Black "dretch"]
[Result "0-1"]
[WhiteElo "2536"]
[BlackElo "2817"]
[TimeControl "180+1"]
[EndTime "10:19:33 PST"]
[Termination "dretch won by resignation"]

1. d4 {[%clk 0:03:00.9]} 1... d5 {[%clk 0:02:58.7]} 2. c4 {[%clk 0:03:00]} 2...
c6 {[%clk 0:02:58.6]} 3. Nf3 {[%clk 0:02:58.5]} 3... Nf6 {[%clk 0:02:57.7]} 4.
e3 {[%clk 0:02:57.4]} 4... Bf5 {[%clk 0:02:56.9]} 5. Nc3 {[%clk 0:02:56.5]} 5...
e6 {[%clk 0:02:55.9]} 6. Nh4 {[%clk 0:02:55.3]} 6... Bg6 {[%clk 0:02:56]} 7. Qb3
{[%clk 0:02:50.7]} 7... Qb6 {[%clk 0:02:49.7]} 8. Nxg6 {[%clk 0:02:37.9]} 8...
hxg6 {[%clk 0:02:49.1]} 9. Bd2 {[%clk 0:02:37.4]} 9... Nbd7 {[%clk 0:02:35.4]}
10. cxd5 {[%clk 0:02:35.5]} 10... Qxb3 {[%clk 0:02:28.1]} 11. axb3 {[%clk
0:02:34.1]} 11... exd5 {[%clk 0:02:28.3]} 12. Bd3 {[%clk 0:02:27.2]} 12... Bd6
{[%clk 0:02:22.2]} 13. h3 {[%clk 0:01:48.3]} 13... a6 {[%clk 0:02:06.8]} 14. f3
{[%clk 0:01:37.9]} 14... Bg3+ {[%clk 0:01:34.4]} 15. Kf1 {[%clk 0:01:37.3]}
15... O-O-O {[%clk 0:01:21.3]} 16. Ne2 {[%clk 0:01:36.5]} 16... Bc7 {[%clk
0:01:18.7]} 17. Kf2 {[%clk 0:01:33.1]} 17... Kb8 {[%clk 0:01:04.1]} 18. Bb4
{[%clk 0:01:16.2]} 18... Rde8 {[%clk 0:00:57.6]} 19. Rhe1 {[%clk 0:01:14.6]}
19... Nh5 {[%clk 0:00:33.7]} 20. Bd2 {[%clk 0:00:42.9]} 20... c5 {[%clk
0:00:23]} 21. Rac1 {[%clk 0:00:37.2]} 21... cxd4 {[%clk 0:00:17]} 22. exd4
{[%clk 0:00:36.8]} 22... Bd8 {[%clk 0:00:11.8]} 23. g3 {[%clk 0:00:23.7]} 23...
Bc7 {[%clk 0:00:09.3]} 24. Kg2 {[%clk 0:00:17.5]} 24... Nhf6 {[%clk 0:00:09]}
25. Nf4 {[%clk 0:00:16.4]} 25... Rxe1 {[%clk 0:00:09]} 26. Rxe1 {[%clk
0:00:16.4]} 26... Bd6 {[%clk 0:00:09.2]} 27. Bb1 {[%clk 0:00:11.6]} 27... Ka7
{[%clk 0:00:08.1]} 28. Nd3 {[%clk 0:00:11.4]} 28... Nb8 {[%clk 0:00:08]} 29. Bf4
{[%clk 0:00:08.2]} 29... Bxf4 {[%clk 0:00:07.4]} 30. Nxf4 {[%clk 0:00:09.1]}
30... Nc6 {[%clk 0:00:08]} 31. Rd1 {[%clk 0:00:05.8]} 31... Re8 {[%clk 0:00:08]}
32. Kf2 {[%clk 0:00:06.1]} 32... g5 {[%clk 0:00:08.2]} 33. Ne2 {[%clk
0:00:06.3]} 33... Na5 {[%clk 0:00:08.6]} 34. Bc2 {[%clk 0:00:05.4]} 34... Nd7
{[%clk 0:00:08.6]} 35. Rd2 {[%clk 0:00:05.5]} 35... Nb8 {[%clk 0:00:08.9]} 36.
Nc3 {[%clk 0:00:05.8]} 36... Rd8 {[%clk 0:00:08.2]} 37. Bd1 {[%clk 0:00:05]}
37... Nbc6 {[%clk 0:00:08.5]} 38. h4 {[%clk 0:00:04]} 38... gxh4 {[%clk
0:00:08.5]} 39. gxh4 {[%clk 0:00:04.9]} 39... Nb4 {[%clk 0:00:09.1]} 40. Kg3
{[%clk 0:00:04.4]} 40... Rh8 {[%clk 0:00:09.4]} 41. Re2 {[%clk 0:00:04]} 41...
Rh6 {[%clk 0:00:09.3]} 42. Re7 {[%clk 0:00:03.9]} 42... Rg6+ {[%clk 0:00:09.6]}
43. Kf4 {[%clk 0:00:04]} 43... Rf6+ {[%clk 0:00:10]} 44. Kg3 {[%clk 0:00:03.1]}
44... Nac6 {[%clk 0:00:10.9]} 45. Rd7 {[%clk 0:00:02.3]} 45... Nxd4 {[%clk
0:00:11.2]} 46. Nxd5 {[%clk 0:00:02.3]} 46... Nf5+ {[%clk 0:00:11.2]} 47. Kf4
{[%clk 0:00:01.8]} 47... Nxd5+ {[%clk 0:00:10.4]} 48. Rxd5 {[%clk 0:00:02.7]}
48... Ne7+ {[%clk 0:00:10.7]} 49. Ke5 {[%clk 0:00:03.6]} 49... Nxd5 {[%clk
0:00:11.1]} 50. Kxd5 {[%clk 0:00:04.5]} 50... Rh6 {[%clk 0:00:11]} 0-1

[Event "*** Titled Tuesday Blitz"]
[Site "Chess.com"]
[Date "2020.11.03"]
[Round "2"]
[White "GregShahade"]
[Black "kai_nov"]
[Result "1-0"]
[WhiteElo "2663"]
[BlackElo "2286"]
[TimeControl "180+1"]
[EndTime "10:19:36 PST"]
[Termination "GregShahade won on time"]

1. e4 {[%clk 0:03:00.9]} 1... c5 {[%clk 0:02:56.8]} 2. Nf3 {[%clk 0:03:00.9]}
2... Nc6 {[%clk 0:02:56.2]} 3. d4 {[%clk 0:03:01]} 3... cxd4 {[%clk 0:02:54.3]}
4. Nxd4 {[%clk 0:03:01.9]} 4... Nf6 {[%clk 0:02:53.6]} 5. Nc3 {[%clk 0:03:02.1]}
5... e5 {[%clk 0:02:53.3]} 6. Ndb5 {[%clk 0:03:02.2]} 6... d6 {[%clk 0:02:52.2]}
7. Bg5 {[%clk 0:03:02.9]} 7... a6 {[%clk 0:02:51.8]} 8. Na3 {[%clk 0:03:03.2]}
8... b5 {[%clk 0:02:51.6]} 9. Nd5 {[%clk 0:03:03.6]} 9... Be7 {[%clk 0:02:51.3]}
10. Bxf6 {[%clk 0:03:04.2]} 10... Bxf6 {[%clk 0:02:51.1]} 11. c4 {[%clk
0:03:05]} 11... bxc4 {[%clk 0:02:21.8]} 12. Nxc4 {[%clk 0:03:00.4]} 12... O-O
{[%clk 0:02:17.3]} 13. Nxf6+ {[%clk 0:01:57.9]} 13... gxf6 {[%clk 0:02:16.4]}
14. Qxd6 {[%clk 0:01:45.6]} 14... Qxd6 {[%clk 0:02:13]} 15. Nxd6 {[%clk
0:01:45.5]} 15... Nb4 {[%clk 0:02:11.3]} 16. O-O-O {[%clk 0:01:00.2]} 16...
Nxa2+ {[%clk 0:02:00.2]} 17. Kb1 {[%clk 0:01:00.2]} 17... Be6 {[%clk 0:01:57]}
18. Bc4 {[%clk 0:00:55.8]} 18... Nb4 {[%clk 0:01:52.6]} 19. Bxe6 {[%clk
0:00:43.2]} 19... fxe6 {[%clk 0:01:52.4]} 20. Nb7 {[%clk 0:00:43.5]} 20... Rfc8
{[%clk 0:01:26.1]} 21. Rd2 {[%clk 0:00:37.3]} 21... Nc6 {[%clk 0:00:54.5]} 22.
Nc5 {[%clk 0:00:29.3]} 22... Nd4 {[%clk 0:00:51.4]} 23. Nd3 {[%clk 0:00:24.6]}
23... Nb3 {[%clk 0:00:20.2]} 24. Rdd1 {[%clk 0:00:21.2]} 24... Rc4 {[%clk
0:00:16.8]} 25. f3 {[%clk 0:00:20.5]} 25... Rac8 {[%clk 0:00:16.4]} 26. Ka2
{[%clk 0:00:21]} 26... Nd4 {[%clk 0:00:15.8]} 27. Rd2 {[%clk 0:00:19.9]} 27...
Rc2 {[%clk 0:00:13.2]} 28. Rhd1 {[%clk 0:00:19]} 28... Kf7 {[%clk 0:00:12.1]}
29. Nb4 {[%clk 0:00:17.1]} 29... Rxd2 {[%clk 0:00:11.5]} 30. Rxd2 {[%clk
0:00:18]} 30... a5 {[%clk 0:00:11.6]} 31. Nd3 {[%clk 0:00:16.3]} 31... Ke7
{[%clk 0:00:10]} 32. f4 {[%clk 0:00:14.2]} 32... exf4 {[%clk 0:00:07.7]} 33.
Nxf4 {[%clk 0:00:15.1]} 33... Nb5 {[%clk 0:00:06.8]} 34. g4 {[%clk 0:00:12.5]}
34... Rc4 {[%clk 0:00:06.6]} 35. Re2 {[%clk 0:00:12.5]} 35... Nd4 {[%clk
0:00:06.2]} 36. Re3 {[%clk 0:00:12.7]} 36... Ra4+ {[%clk 0:00:06.2]} 37. Kb1
{[%clk 0:00:13.1]} 37... Ra1+ {[%clk 0:00:05.5]} 38. Kxa1 {[%clk 0:00:13.1]}
38... Nc2+ {[%clk 0:00:05.9]} 39. Kb1 {[%clk 0:00:12.9]} 39... Nxe3 {[%clk
0:00:06.4]} 40. h3 {[%clk 0:00:13.4]} 40... Kd6 {[%clk 0:00:06.1]} 41. Nd3
{[%clk 0:00:12.3]} 41... Nc4 {[%clk 0:00:05.5]} 42. Kc2 {[%clk 0:00:12.1]} 42...
Ne5 {[%clk 0:00:05.7]} 43. Nf4 {[%clk 0:00:10.7]} 43... Nc6 {[%clk 0:00:04.8]}
44. Kd3 {[%clk 0:00:08.2]} 44... Ne5+ {[%clk 0:00:02.6]} 45. Kd4 {[%clk
0:00:07.4]} 45... h6 {[%clk 0:00:02.4]} 46. Nh5 {[%clk 0:00:07.2]} 46... Ke7
{[%clk 0:00:01.6]} 47. b3 {[%clk 0:00:06.3]} 1-0

[Event "*** Titled Tuesday Blitz"]
[Site "Chess.com"]
[Date "2020.11.03"]
[Round "2"]
[White "Tenamu"]
[Black "canary2016"]
[Result "1-0"]
[WhiteElo "2366"]
[BlackElo "1948"]
[TimeControl "180+1"]
[EndTime "10:19:36 PST"]
[Termination "Tenamu won on time"]

1. d4 {[%clk 0:03:00.9]} 1... d5 {[%clk 0:02:59.1]} 2. Nc3 {[%clk 0:03:00]} 2...
Nf6 {[%clk 0:02:56.4]} 3. Bf4 {[%clk 0:02:59.3]} 3... a6 {[%clk 0:02:56]} 4. e3
{[%clk 0:02:59.1]} 4... e6 {[%clk 0:02:54.3]} 5. a3 {[%clk 0:02:58.5]} 5... c5
{[%clk 0:02:53.9]} 6. f3 {[%clk 0:02:58.3]} 6... Nc6 {[%clk 0:02:53.6]} 7. Nge2
{[%clk 0:02:57.7]} 7... b5 {[%clk 0:02:45.6]} 8. g4 {[%clk 0:02:55.2]} 8... Bb7
{[%clk 0:02:43.4]} 9. h4 {[%clk 0:02:51.6]} 9... Rc8 {[%clk 0:02:40.3]} 10. Ng3
{[%clk 0:02:48.2]} 10... Bd6 {[%clk 0:02:36.3]} 11. g5 {[%clk 0:02:46.5]} 11...
Bxf4 {[%clk 0:02:34.1]} 12. exf4 {[%clk 0:02:44]} 12... Nd7 {[%clk 0:02:31.7]}
13. dxc5 {[%clk 0:02:43.1]} 13... Nxc5 {[%clk 0:02:31.7]} 14. f5 {[%clk
0:02:43.5]} 14... Qd6 {[%clk 0:02:28.3]} 15. Kf2 {[%clk 0:02:39.2]} 15... Ne5
{[%clk 0:02:12.6]} 16. Qd4 {[%clk 0:02:28.2]} 16... O-O {[%clk 0:02:03.4]} 17.
f6 {[%clk 0:02:21.6]} 17... Nc6 {[%clk 0:01:58.4]} 18. Qd2 {[%clk 0:02:17.3]}
18... Qe5 {[%clk 0:01:45.1]} 19. f4 {[%clk 0:02:11.9]} 19... Qd4+ {[%clk
0:01:44.2]} 20. Qxd4 {[%clk 0:02:11.3]} 20... Nxd4 {[%clk 0:01:44.3]} 21. Rc1
{[%clk 0:02:08.4]} 21... Nxc2 {[%clk 0:01:13.4]} 22. fxg7 {[%clk 0:01:48.7]}
22... Kxg7 {[%clk 0:01:04.4]} 23. Nh5+ {[%clk 0:01:40.1]} 23... Kh8 {[%clk
0:00:59.1]} 24. Rh3 {[%clk 0:01:35.4]} 24... Nd4 {[%clk 0:00:56]} 25. Nf6 {[%clk
0:01:33.5]} 25... Nf5 {[%clk 0:00:52.5]} 26. Re1 {[%clk 0:01:29.6]} 26... d4
{[%clk 0:00:47.4]} 27. Nb1 {[%clk 0:01:26.1]} 27... Rfd8 {[%clk 0:00:39.5]} 28.
Nd2 {[%clk 0:01:19.9]} 28... Ne3 {[%clk 0:00:28.4]} 29. b4 {[%clk 0:01:09.3]}
29... Na4 {[%clk 0:00:23.9]} 30. Bd3 {[%clk 0:01:08.1]} 30... Ng2 {[%clk
0:00:15.2]} 31. Nh5 {[%clk 0:00:50.8]} 31... Nxe1 {[%clk 0:00:12.5]} 32. Kxe1
{[%clk 0:00:48.2]} 32... Rc1+ {[%clk 0:00:11.4]} 33. Ke2 {[%clk 0:00:47.9]}
33... Nc3+ {[%clk 0:00:11.5]} 34. Kf2 {[%clk 0:00:46]} 34... Rd1 {[%clk
0:00:11.5]} 35. Nb3 {[%clk 0:00:45.5]} 35... Rxd3 {[%clk 0:00:11]} 36. Rxd3
{[%clk 0:00:44.8]} 36... Be4 {[%clk 0:00:08.7]} 37. Rd2 {[%clk 0:00:44.9]} 37...
Bg6 {[%clk 0:00:08.1]} 38. Nf6 {[%clk 0:00:44]} 38... Ne4+ {[%clk 0:00:07.8]}
39. Nxe4 {[%clk 0:00:44.1]} 39... Bxe4 {[%clk 0:00:07.1]} 40. Nc5 {[%clk
0:00:45]} 40... Bf5 {[%clk 0:00:05]} 41. Nxa6 {[%clk 0:00:41.6]} 41... Ra8
{[%clk 0:00:04.8]} 42. Nc7 {[%clk 0:00:41.4]} 42... Rxa3 {[%clk 0:00:04.4]} 43.
Nxb5 {[%clk 0:00:41.7]} 43... Rb3 {[%clk 0:00:03]} 44. Rxd4 {[%clk 0:00:41.2]}
44... Rb2+ {[%clk 0:00:03.1]} 45. Ke3 {[%clk 0:00:40.4]} 45... Rb3+ {[%clk
0:00:03.3]} 46. Kd2 {[%clk 0:00:40.3]} 46... Rh3 {[%clk 0:00:03.1]} 47. Nd6
{[%clk 0:00:38.4]} 47... Rxh4 {[%clk 0:00:02.9]} 48. Nxf7+ {[%clk 0:00:38.4]}
48... Kg7 {[%clk 0:00:02.5]} 49. Ne5 {[%clk 0:00:39.3]} 49... Rh2+ {[%clk
0:00:02.1]} 50. Kc3 {[%clk 0:00:38.8]} 50... Rh3+ {[%clk 0:00:01.9]} 51. Kc4
{[%clk 0:00:38.8]} 51... Rh1 {[%clk 0:00:01.8]} 52. Rd7+ {[%clk 0:00:37.2]}
52... Kg8 {[%clk 0:00:01.1]} 53. Kc5 {[%clk 0:00:37.7]} 53... Kf8 {[%clk
0:00:01.2]} 54. Rf7+ {[%clk 0:00:34.3]} 54... Ke8 {[%clk 0:00:01.4]} 55. Rc7
{[%clk 0:00:34.4]} 55... Rh2 {[%clk 0:00:01.1]} 56. b5 {[%clk 0:00:33.7]} 1-0